[Event "Live Chess"]
[Site "Chess.com"]
[Date "2024.06.02"]
[Round "-"]
[White "HoarseyHorsey"]
[Black "davigator"]
[Result "0-1"]
[WhiteElo "1567"]
[BlackElo "2326"]
[TimeControl "300"]
[EndTime "8:52:12 PDT"]
[Termination "davigator won by resignation"]

1. d4 {[%clk 0:04:58.1]} 1... Nf6 {[%clk 0:04:57.9]} 2. c4 {[%clk 0:04:57.3]}
2... e6 {[%clk 0:04:54.5]} 3. Nc3 {[%clk 0:04:56.6]} 3... Bb4 {[%clk 0:04:53]}
4. Qc2 {[%clk 0:04:55.1]} 4... c5 {[%clk 0:04:49.2]} 5. dxc5 {[%clk 0:04:53.5]}
5... Nc6 {[%clk 0:04:47.2]} 6. a3 {[%clk 0:04:48.5]} 6... Bxc5 {[%clk
0:04:45.4]} 7. b4 {[%clk 0:04:44.1]} 7... Be7 {[%clk 0:04:43.8]} 8. Nf3 {[%clk
0:04:41.4]} 8... b6 {[%clk 0:04:42.9]} 9. e4 {[%clk 0:04:38.5]} 9... Bb7 {[%clk
0:04:38.6]} 10. Bd3 {[%clk 0:04:35.8]} 10... Rc8 {[%clk 0:04:36.4]} 11. O-O
{[%clk 0:04:34.4]} 11... a5 {[%clk 0:04:33.9]} 12. Bb2 {[%clk 0:04:26.5]} 12...
axb4 {[%clk 0:04:31.7]} 13. axb4 {[%clk 0:04:24.8]} 13... Nxb4 {[%clk 0:04:31]}
14. Qb3 {[%clk 0:04:24]} 14... Na6 {[%clk 0:04:26.3]} 15. e5 {[%clk 0:04:12.9]}
15... Ng4 {[%clk 0:04:23.8]} 16. h3 {[%clk 0:04:11.8]} 16... Nc5 {[%clk
0:04:22.2]} 17. Qc2 {[%clk 0:04:09.9]} 17... Bxf3 {[%clk 0:04:17.2]} 18. hxg4
{[%clk 0:04:07.7]} 18... Bxg4 {[%clk 0:04:15.3]} 19. Ne4 {[%clk 0:04:02.2]}
19... Nxd3 {[%clk 0:04:10.3]} 20. Qxd3 {[%clk 0:04:01.3]} 20... Bf5 {[%clk
0:04:09.7]} 21. Nd6+ {[%clk 0:03:58.7]} 21... Bxd6 {[%clk 0:04:08.3]} 22. Qxd6
{[%clk 0:03:57.4]} 22... Rc6 {[%clk 0:04:03.9]} 23. Qd4 {[%clk 0:03:49.9]} 23...
O-O {[%clk 0:04:01.2]} 24. Rfd1 {[%clk 0:03:47.6]} 24... Qc8 {[%clk 0:03:54.1]}
25. Qxd7 {[%clk 0:03:40.9]} 25... Rxc4 {[%clk 0:03:52.7]} 26. Ba3 {[%clk
0:03:29.2]} 26... Re8 {[%clk 0:03:50.3]} 27. Rac1 {[%clk 0:03:19.6]} 27... Rxc1
{[%clk 0:03:47.9]} 28. Qxc8 {[%clk 0:03:16.7]} 28... Rcxc8 {[%clk 0:03:44.8]}
0-1

[Event "Live Chess"]
[Site "Chess.com"]
[Date "2024.06.02"]
[Round "-"]
[White "yarek"]
[Black "Trendle"]
[Result "0-1"]
[WhiteElo "1754"]
[BlackElo "2599"]
[TimeControl "300"]
[EndTime "8:52:18 PDT"]
[Termination "Trendle won by resignation"]

1. e4 {[%clk 0:04:53.7]} 1... e5 {[%clk 0:04:57]} 2. d4 {[%clk 0:04:50.6]} 2...
exd4 {[%clk 0:04:55.5]} 3. Qxd4 {[%clk 0:04:49.8]} 3... Nc6 {[%clk 0:04:53.9]}
4. Qe3 {[%clk 0:04:49.3]} 4... Nf6 {[%clk 0:04:52.2]} 5. Nc3 {[%clk 0:04:48.7]}
5... Bb4 {[%clk 0:04:50.1]} 6. Bd2 {[%clk 0:04:48.2]} 6... O-O {[%clk 0:04:49]}
7. O-O-O {[%clk 0:04:47.6]} 7... Re8 {[%clk 0:04:45.9]} 8. Qg3 {[%clk
0:04:46.4]} 8... Nxe4 {[%clk 0:04:32.2]} 9. Nxe4 {[%clk 0:04:41.9]} 9... Rxe4
{[%clk 0:04:32.1]} 10. Bd3 {[%clk 0:04:25]} 10... Bxd2+ {[%clk 0:04:28.9]} 11.
Kxd2 {[%clk 0:04:21.6]} 11... Re8 {[%clk 0:04:16.8]} 12. Nf3 {[%clk 0:04:18.3]}
12... d6 {[%clk 0:04:08.8]} 13. Bxh7+ {[%clk 0:04:08.5]} 13... Kxh7 {[%clk
0:04:05.8]} 14. Ng5+ {[%clk 0:04:07.8]} 14... Kg8 {[%clk 0:04:03.5]} 15. Qh4
{[%clk 0:04:06.6]} 15... Bf5 {[%clk 0:04:02.4]} 16. g4 {[%clk 0:03:57.3]} 16...
Bg6 {[%clk 0:03:49.9]} 17. f4 {[%clk 0:03:54.6]} 17... Nd4 {[%clk 0:03:45]} 18.
Kc1 {[%clk 0:03:46.6]} 18... Ne2+ {[%clk 0:03:14.6]} 19. Kb1 {[%clk 0:03:44.5]}
19... Nxf4 {[%clk 0:03:14.3]} 20. Rhf1 {[%clk 0:03:36]} 20... Re5 {[%clk
0:03:11.8]} 21. Rxf4 {[%clk 0:03:27.4]} 21... Qxg5 {[%clk 0:03:10.3]} 22. Qg3
{[%clk 0:03:23.7]} 22... Rae8 {[%clk 0:03:06.7]} 23. h4 {[%clk 0:03:22.4]} 23...
Qe7 {[%clk 0:03:00.5]} 24. h5 {[%clk 0:03:18.1]} 24... Bh7 {[%clk 0:03:00.2]}
25. g5 {[%clk 0:03:15.3]} 25... Rxg5 {[%clk 0:02:57]} 0-1

[Event "Live Chess"]
[Site "Chess.com"]
[Date "2024.06.02"]
[Round "-"]
[White "E2E4colchester"]
[Black "Inglaterra"]
[Result "0-1"]
[WhiteElo "1006"]
[BlackElo "2051"]
[TimeControl "300"]
[EndTime "8:52:32 PDT"]
[Termination "Inglaterra won by resignation"]

1. d4 {[%clk 0:04:57.2]} 1... d5 {[%clk 0:04:58.9]} 2. c4 {[%clk 0:04:56.4]}
2... e6 {[%clk 0:04:57.7]} 3. e3 {[%clk 0:04:54.7]} 3... Nf6 {[%clk 0:04:56.6]}
4. Nc3 {[%clk 0:04:53.2]} 4... Be7 {[%clk 0:04:53.4]} 5. c5 {[%clk 0:04:52.2]}
5... O-O {[%clk 0:04:52.1]} 6. b4 {[%clk 0:04:50.1]} 6... a5 {[%clk 0:04:49.8]}
7. a3 {[%clk 0:04:48.8]} 7... axb4 {[%clk 0:04:48.3]} 8. Bd2 {[%clk 0:04:44.4]}
8... bxc3 {[%clk 0:04:46.8]} 9. Bxc3 {[%clk 0:04:43.7]} 9... Ne4 {[%clk
0:04:46]} 10. Bb4 {[%clk 0:04:42]} 10... Nc6 {[%clk 0:04:42.1]} 11. Bd3 {[%clk
0:04:39.2]} 11... f5 {[%clk 0:04:34.1]} 12. Nf3 {[%clk 0:04:33]} 12... b6 {[%clk
0:04:28.8]} 13. Bxe4 {[%clk 0:04:29.4]} 13... fxe4 {[%clk 0:04:27.1]} 14. Ne5
{[%clk 0:04:28.4]} 14... Nxe5 {[%clk 0:04:25.3]} 15. dxe5 {[%clk 0:04:27.5]}
15... bxc5 {[%clk 0:04:24.4]} 16. Bc3 {[%clk 0:04:25.6]} 16... Ba6 {[%clk
0:04:23.4]} 0-1

[Event "Live Chess"]
[Site "Chess.com"]
[Date "2024.06.02"]
[Round "-"]
[White "Hazban"]
[Black "f4nomore"]
[Result "1-0"]
[WhiteElo "2058"]
[BlackElo "1294"]
[TimeControl "300"]
[EndTime "8:52:52 PDT"]
[Termination "Hazban won by checkmate"]

1. e4 {[%clk 0:04:59.4]} 1... g6 {[%clk 0:04:58.1]} 2. f4 {[%clk 0:04:58]} 2...
Bg7 {[%clk 0:04:58]} 3. Nf3 {[%clk 0:04:56.9]} 3... d6 {[%clk 0:04:56.8]} 4. d4
{[%clk 0:04:56]} 4... Nd7 {[%clk 0:04:54.6]} 5. e5 {[%clk 0:04:54.6]} 5... dxe5
{[%clk 0:04:52.9]} 6. fxe5 {[%clk 0:04:53.8]} 6... e6 {[%clk 0:04:52]} 7. Bd3
{[%clk 0:04:48.5]} 7... Ne7 {[%clk 0:04:50.6]} 8. O-O {[%clk 0:04:46.6]} 8...
O-O {[%clk 0:04:49.3]} 9. Be3 {[%clk 0:04:43.5]} 9... Nd5 {[%clk 0:04:47.4]} 10.
Bg5 {[%clk 0:04:39.7]} 10... f6 {[%clk 0:04:45.4]} 11. Bd2 {[%clk 0:04:37]}
11... fxe5 {[%clk 0:04:34]} 12. c4 {[%clk 0:04:36.1]} 12... Nf4 {[%clk
0:04:19.3]} 13. Bxf4 {[%clk 0:04:29.8]} 13... exf4 {[%clk 0:04:16.6]} 14. Nc3
{[%clk 0:04:26.2]} 14... Qf6 {[%clk 0:04:05.1]} 15. Re1 {[%clk 0:04:21.7]} 15...
Nb6 {[%clk 0:04:02.8]} 16. Qe2 {[%clk 0:04:20.2]} 16... Bd7 {[%clk 0:03:57.9]}
17. a4 {[%clk 0:04:17.9]} 17... Rae8 {[%clk 0:03:54.1]} 18. a5 {[%clk
0:04:17.2]} 18... Nc8 {[%clk 0:03:51.7]} 19. Ne5 {[%clk 0:04:11.9]} 19... Qe7
{[%clk 0:03:32.7]} 20. Qg4 {[%clk 0:03:57.2]} 20... Nd6 {[%clk 0:03:23.7]} 21.
c5 {[%clk 0:03:40.6]} 21... Nf7 {[%clk 0:03:11.7]} 22. Nxg6 {[%clk 0:03:38.2]}
22... hxg6 {[%clk 0:03:09.2]} 23. Qxg6 {[%clk 0:03:37.2]} 23... Qf6 {[%clk
0:03:04.4]} 24. Qh7# {[%clk 0:03:35.2]} 1-0

[Event "Live Chess"]
[Site "Chess.com"]
[Date "2024.06.02"]
[Round "-"]
[White "TC2304"]
[Black "grillage"]
[Result "1-0"]
[WhiteElo "2317"]
[BlackElo "1877"]
[TimeControl "300"]
[EndTime "8:52:54 PDT"]
[Termination "TC2304 won by resignation"]

1. a4 {[%clk 0:04:57.3]} 1... d5 {[%clk 0:04:50.9]} 2. a5 {[%clk 0:04:57.2]}
2... a6 {[%clk 0:04:48.2]} 3. e3 {[%clk 0:04:57.1]} 3... Nf6 {[%clk 0:04:44.7]}
4. d4 {[%clk 0:04:56.1]} 4... c5 {[%clk 0:04:42.2]} 5. c4 {[%clk 0:04:54.6]}
5... cxd4 {[%clk 0:04:40.3]} 6. exd4 {[%clk 0:04:53.1]} 6... Bf5 {[%clk
0:04:38.7]} 7. Nc3 {[%clk 0:04:50.3]} 7... e6 {[%clk 0:04:36.9]} 8. Nf3 {[%clk
0:04:47.1]} 8... Bb4 {[%clk 0:04:35.4]} 9. Qb3 {[%clk 0:04:46.2]} 9... Qe7
{[%clk 0:04:30.7]} 10. Bd2 {[%clk 0:04:35.9]} 10... O-O {[%clk 0:04:23.6]} 11.
Ra4 {[%clk 0:04:32.8]} 11... Nc6 {[%clk 0:04:21.9]} 12. c5 {[%clk 0:04:24.4]}
12... Bxa5 {[%clk 0:04:17.6]} 13. Be2 {[%clk 0:04:15.2]} 13... Bxc3 {[%clk
0:04:14]} 14. Bxc3 {[%clk 0:04:08.3]} 14... Ne4 {[%clk 0:04:11.4]} 15. O-O
{[%clk 0:04:06.2]} 15... Nxc3 {[%clk 0:04:09.7]} 16. bxc3 {[%clk 0:04:05.3]}
16... Rab8 {[%clk 0:04:03]} 17. Ra2 {[%clk 0:03:16.6]} 17... h6 {[%clk
0:04:00.5]} 18. Re1 {[%clk 0:03:06.9]} 18... Qc7 {[%clk 0:03:57.8]} 19. Rb2
{[%clk 0:03:04.5]} 19... Bg4 {[%clk 0:03:48.3]} 20. h3 {[%clk 0:03:00.3]} 20...
Bxf3 {[%clk 0:03:46.8]} 21. Bxf3 {[%clk 0:03:00.2]} 21... Ne7 {[%clk 0:03:43.1]}
22. Reb1 {[%clk 0:02:55.4]} 22... e5 {[%clk 0:03:24.4]} 23. Bxd5 {[%clk
0:02:44.1]} 23... exd4 {[%clk 0:03:12.2]} 24. cxd4 {[%clk 0:02:43.5]} 24... Qd7
{[%clk 0:03:04.8]} 25. Bxb7 {[%clk 0:02:27.6]} 25... Qxd4 {[%clk 0:03:00.6]} 26.
Qb6 {[%clk 0:02:15.7]} 26... Nd5 {[%clk 0:02:44.7]} 27. Qxa6 {[%clk 0:02:00.5]}
27... Nc3 {[%clk 0:02:36.1]} 28. Rc1 {[%clk 0:01:53.9]} 28... Qe5 {[%clk
0:02:17.1]} 29. c6 {[%clk 0:01:24.2]} 29... Ne2+ {[%clk 0:02:10.6]} 30. Rxe2
{[%clk 0:01:18.3]} 30... Qxe2 {[%clk 0:02:09.3]} 31. Qxe2 {[%clk 0:01:18.2]} 1-0

[Event "Live Chess"]
[Site "Chess.com"]
[Date "2024.06.02"]
[Round "-"]
[White "Queensandpawns"]
[Black "McFim"]
[Result "1-0"]
[WhiteElo "2243"]
[BlackElo "1818"]
[TimeControl "300"]
[EndTime "8:53:01 PDT"]
[Termination "Queensandpawns won by resignation"]

1. e4 {[%clk 0:04:59.2]} 1... c6 {[%clk 0:04:58.3]} 2. d4 {[%clk 0:04:57.9]}
2... d5 {[%clk 0:04:58.2]} 3. Nc3 {[%clk 0:04:57.4]} 3... dxe4 {[%clk
0:04:57.1]} 4. Nxe4 {[%clk 0:04:57.3]} 4... Nd7 {[%clk 0:04:56.4]} 5. Nf3 {[%clk
0:04:55.2]} 5... Ngf6 {[%clk 0:04:54.4]} 6. Neg5 {[%clk 0:04:54.8]} 6... h6
{[%clk 0:04:52.9]} 7. Nxf7 {[%clk 0:04:54.3]} 7... Kxf7 {[%clk 0:04:51.6]} 8.
Bd3 {[%clk 0:04:54.2]} 8... Nb6 {[%clk 0:04:45.4]} 9. O-O {[%clk 0:04:54.1]}
9... g6 {[%clk 0:04:36.3]} 10. Ne5+ {[%clk 0:04:53]} 10... Kg7 {[%clk 0:04:32]}
11. Bxg6 {[%clk 0:04:33.8]} 11... Be6 {[%clk 0:04:22.1]} 12. Qd3 {[%clk
0:04:31.2]} 12... c5 {[%clk 0:04:16.4]} 13. Bh5 {[%clk 0:04:29.8]} 1-0

[Event "Live Chess"]
[Site "Chess.com"]
[Date "2024.06.02"]
[Round "-"]
[White "Zhevzh1k7"]
[Black "Cruiseylee78"]
[Result "0-1"]
[WhiteElo "1121"]
[BlackElo "1671"]
[TimeControl "300"]
[EndTime "8:53:06 PDT"]
[Termination "Cruiseylee78 won by resignation"]

1. e4 {[%clk 0:04:56.1]} 1... d6 {[%clk 0:04:58.5]} 2. Nf3 {[%clk 0:04:49.2]}
2... Nd7 {[%clk 0:04:58.4]} 3. Bc4 {[%clk 0:04:46.4]} 3... h6 {[%clk 0:04:55.2]}
4. Nc3 {[%clk 0:04:44.1]} 4... e5 {[%clk 0:04:54.2]} 5. d4 {[%clk 0:04:41.8]}
5... c6 {[%clk 0:04:52.5]} 6. Be3 {[%clk 0:04:34.6]} 6... Ngf6 {[%clk
0:04:49.6]} 7. O-O {[%clk 0:04:31.6]} 7... g5 {[%clk 0:04:47.3]} 8. dxe5 {[%clk
0:04:29.5]} 8... dxe5 {[%clk 0:04:46.3]} 9. Qe2 {[%clk 0:04:19.2]} 9... Qc7
{[%clk 0:04:45.3]} 10. Rad1 {[%clk 0:04:15.1]} 10... Be7 {[%clk 0:04:41.8]} 11.
Bb3 {[%clk 0:04:02]} 11... Rg8 {[%clk 0:04:39.5]} 12. Qc4 {[%clk 0:03:58.4]}
12... Rg7 {[%clk 0:04:36.4]} 13. Rd3 {[%clk 0:03:37.3]} 13... Nf8 {[%clk
0:04:32]} 14. Rfd1 {[%clk 0:03:27.2]} 14... Be6 {[%clk 0:04:29.9]} 15. Qb4
{[%clk 0:03:20.3]} 15... Bxb4 {[%clk 0:04:27.6]} 0-1

[Event "Live Chess"]
[Site "Chess.com"]
[Date "2024.06.02"]
[Round "-"]
[White "LL220284LL"]
[Black "Vladyslav2008"]
[Result "0-1"]
[WhiteElo "2460"]
[BlackElo "2271"]
[TimeControl "300"]
[EndTime "8:53:09 PDT"]
[Termination "Vladyslav2008 won by resignation"]

1. Nf3 {[%clk 0:04:57.4]} 1... Nf6 {[%clk 0:04:56.7]} 2. b3 {[%clk 0:04:57.3]}
2... b6 {[%clk 0:04:54.3]} 3. Bb2 {[%clk 0:04:56.8]} 3... Bb7 {[%clk 0:04:53.1]}
4. e3 {[%clk 0:04:55.8]} 4... g6 {[%clk 0:04:51.2]} 5. Be2 {[%clk 0:04:55.2]}
5... Bg7 {[%clk 0:04:50.1]} 6. O-O {[%clk 0:04:54.6]} 6... O-O {[%clk
0:04:49.2]} 7. c4 {[%clk 0:04:53.2]} 7... d6 {[%clk 0:04:47.9]} 8. d4 {[%clk
0:04:51.9]} 8... Na6 {[%clk 0:04:44.6]} 9. Nc3 {[%clk 0:04:50.8]} 9... e5 {[%clk
0:04:36.4]} 10. dxe5 {[%clk 0:04:48.5]} 10... dxe5 {[%clk 0:04:34]} 11. Nxe5
{[%clk 0:04:47.6]} 11... Qe7 {[%clk 0:04:30.3]} 12. Nf3 {[%clk 0:04:43.3]} 12...
Rad8 {[%clk 0:04:28.4]} 13. Qc1 {[%clk 0:04:39.6]} 13... Nc5 {[%clk 0:04:22.8]}
14. Rd1 {[%clk 0:04:34.1]} 14... Ng4 {[%clk 0:04:08.3]} 15. Nd5 {[%clk
0:04:25.7]} 15... Bxd5 {[%clk 0:04:03.2]} 16. cxd5 {[%clk 0:04:20.9]} 16... Ne4
{[%clk 0:03:59.8]} 17. Bxg7 {[%clk 0:04:15.2]} 17... Kxg7 {[%clk 0:03:58.6]} 18.
Qc4 {[%clk 0:04:09.8]} 18... Ngxf2 {[%clk 0:03:56.1]} 19. Rf1 {[%clk 0:04:03.7]}
19... Ng4 {[%clk 0:03:53.8]} 20. Bd3 {[%clk 0:03:57.7]} 20... Ngf6 {[%clk
0:03:47.5]} 21. Bxe4 {[%clk 0:03:49.1]} 21... Qxe4 {[%clk 0:03:44.3]} 22. Qxe4
{[%clk 0:03:46.7]} 22... Nxe4 {[%clk 0:03:43.2]} 23. Rfd1 {[%clk 0:03:45.4]}
23... Nc3 {[%clk 0:03:41.4]} 24. Rd3 {[%clk 0:03:38.1]} 24... Ne4 {[%clk
0:03:25.7]} 25. Rc1 {[%clk 0:03:34.5]} 25... Rd7 {[%clk 0:03:23.9]} 26. Rd4
{[%clk 0:03:32.2]} 26... Nf6 {[%clk 0:03:22]} 27. e4 {[%clk 0:03:29.1]} 27...
Re8 {[%clk 0:03:20.8]} 28. Nd2 {[%clk 0:03:23.5]} 28... c5 {[%clk 0:03:16.5]}
29. Rd3 {[%clk 0:03:21.1]} 29... Nxe4 {[%clk 0:03:12.9]} 30. Nxe4 {[%clk
0:03:16.2]} 30... Rxe4 {[%clk 0:03:11.7]} 31. Rcd1 {[%clk 0:03:11]} 31... Kf8
{[%clk 0:03:07.4]} 32. Kf2 {[%clk 0:03:09.9]} 32... Ke7 {[%clk 0:03:06.3]} 33.
Kf3 {[%clk 0:03:07.7]} 33... f5 {[%clk 0:03:03.4]} 34. g3 {[%clk 0:03:03.1]}
34... Kd6 {[%clk 0:03:02.3]} 35. Re3 {[%clk 0:02:56.3]} 35... Rde7 {[%clk
0:03:00]} 36. Rxe4 {[%clk 0:02:55.6]} 36... Rxe4 {[%clk 0:02:58.9]} 37. Rd2
{[%clk 0:02:54.9]} 37... Re5 {[%clk 0:02:57.7]} 38. Kf4 {[%clk 0:02:53.2]} 38...
Rxd5 {[%clk 0:02:56.6]} 39. Re2 {[%clk 0:02:52.2]} 39... Rd4+ {[%clk 0:02:52.9]}
40. Kg5 {[%clk 0:02:50.8]} 40... Kc6 {[%clk 0:02:47.6]} 41. Kh6 {[%clk
0:02:48.6]} 41... Rd7 {[%clk 0:02:46.4]} 42. h4 {[%clk 0:02:48]} 42... b5 {[%clk
0:02:45.3]} 43. h5 {[%clk 0:02:47.3]} 43... gxh5 {[%clk 0:02:44.1]} 44. Kxh5
{[%clk 0:02:46.4]} 44... c4 {[%clk 0:02:42.7]} 45. bxc4 {[%clk 0:02:45.2]} 45...
bxc4 {[%clk 0:02:41.9]} 46. Kg5 {[%clk 0:02:44.7]} 46... Rf7 {[%clk 0:02:40.5]}
47. Kf4 {[%clk 0:02:42.9]} 47... Kc5 {[%clk 0:02:39]} 48. Re8 {[%clk 0:02:40.1]}
48... Kb4 {[%clk 0:02:34.4]} 49. Rb8+ {[%clk 0:02:36.2]} 49... Kc3 {[%clk
0:02:33.3]} 50. a4 {[%clk 0:02:34.1]} 50... Kd3 {[%clk 0:02:30.8]} 51. Rd8+
{[%clk 0:02:32.1]} 51... Kc2 {[%clk 0:02:29.9]} 52. a5 {[%clk 0:02:31.5]} 52...
c3 {[%clk 0:02:28.8]} 53. a6 {[%clk 0:02:31]} 53... Kc1 {[%clk 0:02:25.2]} 54.
Rb8 {[%clk 0:02:27.9]} 54... Rf6 {[%clk 0:02:23.9]} 55. Rb7 {[%clk 0:02:22.9]}
55... Rxa6 {[%clk 0:02:22.4]} 56. Rxh7 {[%clk 0:02:22]} 56... c2 {[%clk
0:02:21.3]} 57. Kxf5 {[%clk 0:02:20.3]} 57... Rb6 {[%clk 0:02:20.1]} 58. g4
{[%clk 0:02:18.3]} 58... Kb2 {[%clk 0:02:18.5]} 59. Rh2 {[%clk 0:02:16.5]} 59...
Kb1 {[%clk 0:02:17.6]} 60. Rh1+ {[%clk 0:02:15.4]} 60... c1=Q {[%clk 0:02:16.5]}
61. Rxc1+ {[%clk 0:02:15.2]} 61... Kxc1 {[%clk 0:02:16.4]} 62. g5 {[%clk
0:02:14.6]} 62... a5 {[%clk 0:02:15.9]} 63. g6 {[%clk 0:02:14.3]} 63... Rxg6
{[%clk 0:02:15.1]} 64. Kxg6 {[%clk 0:02:14.2]} 64... a4 {[%clk 0:02:14.6]} 0-1

[Event "Live Chess"]
[Site "Chess.com"]
[Date "2024.06.02"]
[Round "-"]
[White "KnightStripes"]
[Black "elephantgerrald"]
[Result "0-1"]
[WhiteElo "925"]
[BlackElo "913"]
[TimeControl "300"]
[EndTime "8:53:12 PDT"]
[Termination "elephantgerrald won by resignation"]

1. d4 {[%clk 0:04:57.5]} 1... d5 {[%clk 0:04:58.4]} 2. Nc3 {[%clk 0:04:56.3]}
2... Nf6 {[%clk 0:04:56]} 3. Bf4 {[%clk 0:04:54.7]} 3... Nc6 {[%clk 0:04:53.4]}
4. Nb5 {[%clk 0:04:53]} 4... e5 {[%clk 0:04:48.8]} 5. Bxe5 {[%clk 0:04:51.5]}
5... Nxe5 {[%clk 0:04:46.2]} 6. dxe5 {[%clk 0:04:50.1]} 6... Qd7 {[%clk
0:04:42.3]} 7. exf6 {[%clk 0:04:42.8]} 7... Qxb5 {[%clk 0:04:41.3]} 8. Rb1
{[%clk 0:04:35.2]} 8... Bb4+ {[%clk 0:04:37.5]} 9. c3 {[%clk 0:04:32.8]} 9...
Bxc3+ {[%clk 0:04:36.1]} 10. bxc3 {[%clk 0:04:30.4]} 10... Qc4 {[%clk
0:04:33.3]} 11. fxg7 {[%clk 0:04:23]} 11... Rg8 {[%clk 0:04:32]} 12. Qd4 {[%clk
0:04:18.4]} 12... Qxa2 {[%clk 0:04:14.7]} 13. Qd3 {[%clk 0:03:57.4]} 13... Bd7
{[%clk 0:04:08.2]} 14. Nf3 {[%clk 0:03:54.1]} 14... O-O-O {[%clk 0:04:04.4]} 15.
e3 {[%clk 0:03:50.7]} 15... Bb5 {[%clk 0:03:56.7]} 16. Qf5+ {[%clk 0:03:46.2]}
16... Bd7 {[%clk 0:03:53.6]} 17. Qc2 {[%clk 0:03:37]} 17... Qxc2 {[%clk
0:03:43.7]} 0-1

[Event "Live Chess"]
[Site "Chess.com"]
[Date "2024.06.02"]
[Round "-"]
[White "Purple1szed"]
[Black "NottheBishopSacrifice"]
[Result "0-1"]
[WhiteElo "1996"]
[BlackElo "2343"]
[TimeControl "300"]
[EndTime "8:53:53 PDT"]
[Termination "NottheBishopSacrifice won by resignation"]

1. c4 {[%clk 0:04:57.8]} 1... e6 {[%clk 0:04:58.4]} 2. g3 {[%clk 0:04:56.5]}
2... d5 {[%clk 0:04:57.4]} 3. Bg2 {[%clk 0:04:56.2]} 3... Nf6 {[%clk 0:04:56.1]}
4. Nf3 {[%clk 0:04:55.8]} 4... dxc4 {[%clk 0:04:55]} 5. Qc2 {[%clk 0:04:53.3]}
5... b5 {[%clk 0:04:52.9]} 6. a4 {[%clk 0:04:52.7]} 6... c6 {[%clk 0:04:50.6]}
7. axb5 {[%clk 0:04:51.2]} 7... cxb5 {[%clk 0:04:50.3]} 8. Ne5 {[%clk 0:04:48]}
8... Nd5 {[%clk 0:04:49.1]} 9. Nc3 {[%clk 0:04:45.1]} 9... Bb7 {[%clk
0:04:45.4]} 10. O-O {[%clk 0:04:34]} 10... a6 {[%clk 0:04:42.3]} 11. f4 {[%clk
0:04:22.8]} 11... Bc5+ {[%clk 0:04:39.3]} 12. e3 {[%clk 0:04:18.4]} 12... Nb4
{[%clk 0:04:35.8]} 13. Qd1 {[%clk 0:04:12]} 13... Bxg2 {[%clk 0:04:32.3]} 14.
Kxg2 {[%clk 0:04:11.9]} 14... O-O {[%clk 0:04:31]} 15. Qf3 {[%clk 0:04:04.5]}
15... Ra7 {[%clk 0:04:28.2]} 16. Ne4 {[%clk 0:04:03.6]} 16... Be7 {[%clk
0:04:25.6]} 17. f5 {[%clk 0:04:02.2]} 17... exf5 {[%clk 0:04:23.6]} 18. Qxf5
{[%clk 0:04:02.1]} 18... Qd5 {[%clk 0:04:16.9]} 19. Rf4 {[%clk 0:03:36]} 19...
N8c6 {[%clk 0:04:12]} 0-1

[Event "Live Chess"]
[Site "Chess.com"]
[Date "2024.06.02"]
[Round "-"]
[White "PaulyD81"]
[Black "jimwad"]
[Result "0-1"]
[WhiteElo "973"]
[BlackElo "1348"]
[TimeControl "300"]
[EndTime "8:53:55 PDT"]
[Termination "jimwad won on time"]

1. d4 {[%clk 0:04:55.8]} 1... d5 {[%clk 0:04:58.8]} 2. Bf4 {[%clk 0:04:50]} 2...
Bf5 {[%clk 0:04:57.4]} 3. e3 {[%clk 0:04:47.4]} 3... Nf6 {[%clk 0:04:56.4]} 4.
Nf3 {[%clk 0:04:46.6]} 4... Nc6 {[%clk 0:04:54.9]} 5. Nh4 {[%clk 0:04:45.5]}
5... e6 {[%clk 0:04:44.2]} 6. Nxf5 {[%clk 0:04:42.5]} 6... exf5 {[%clk
0:04:42.2]} 7. Bd3 {[%clk 0:04:39.7]} 7... g6 {[%clk 0:04:40.3]} 8. Nd2 {[%clk
0:04:31.4]} 8... Ne4 {[%clk 0:04:36.8]} 9. c3 {[%clk 0:04:05.1]} 9... Qh4 {[%clk
0:04:32.9]} 10. Nxe4 {[%clk 0:03:30.4]} 10... fxe4 {[%clk 0:04:29.8]} 11. Bg3
{[%clk 0:03:20.8]} 11... Qe7 {[%clk 0:04:28.5]} 12. Bb5 {[%clk 0:03:04.5]} 12...
Bg7 {[%clk 0:04:20.6]} 13. Bxc6+ {[%clk 0:03:03.2]} 13... bxc6 {[%clk
0:04:19.7]} 14. O-O {[%clk 0:02:55.6]} 14... O-O {[%clk 0:04:18.3]} 15. b4
{[%clk 0:02:46.2]} 15... a5 {[%clk 0:04:06.3]} 16. a3 {[%clk 0:02:42]} 16...
axb4 {[%clk 0:04:02.6]} 17. axb4 {[%clk 0:02:40.9]} 17... Rxa1 {[%clk
0:03:59.5]} 18. Qxa1 {[%clk 0:02:39.8]} 18... h5 {[%clk 0:03:55.5]} 19. Qa7
{[%clk 0:02:29]} 19... Rc8 {[%clk 0:03:52.6]} 20. Qc5 {[%clk 0:02:21.7]} 20...
Qxc5 {[%clk 0:03:45.6]} 21. bxc5 {[%clk 0:02:21.6]} 21... g5 {[%clk 0:03:38.5]}
22. h4 {[%clk 0:01:58.5]} 22... f6 {[%clk 0:03:29]} 23. f3 {[%clk 0:01:39.9]}
23... Bf8 {[%clk 0:03:14.2]} 24. hxg5 {[%clk 0:01:24.6]} 24... fxg5 {[%clk
0:03:12.8]} 25. f4 {[%clk 0:01:15.3]} 25... h4 {[%clk 0:03:10.3]} 26. Bh2 {[%clk
0:01:06.9]} 26... g4 {[%clk 0:03:07.1]} 27. g3 {[%clk 0:00:51.8]} 27... h3
{[%clk 0:03:05.5]} 28. f5 {[%clk 0:00:34.3]} 28... Rb8 {[%clk 0:03:03.3]} 29.
Rf4 {[%clk 0:00:27.5]} 29... Rb1+ {[%clk 0:02:58.3]} 30. Rf1 {[%clk 0:00:24.6]}
30... Rxf1+ {[%clk 0:02:54.9]} 31. Kxf1 {[%clk 0:00:22.7]} 31... Kf7 {[%clk
0:02:54.8]} 32. Ke2 {[%clk 0:00:18]} 32... Kf6 {[%clk 0:02:54.1]} 33. Bg1 {[%clk
0:00:16.6]} 33... Kxf5 {[%clk 0:02:52.8]} 34. Bh2 {[%clk 0:00:10.3]} 34... Be7
{[%clk 0:02:43]} 35. Kd2 {[%clk 0:00:09.2]} 35... Bg5 {[%clk 0:02:41.1]} 36. Kc2
{[%clk 0:00:08.7]} 36... Bxe3 {[%clk 0:02:37.4]} 37. Kb3 {[%clk 0:00:08.2]}
37... Bf2 {[%clk 0:02:30.5]} 38. Kb4 {[%clk 0:00:04.1]} 38... e3 {[%clk
0:02:29.3]} 0-1